fUST/lending_fUST_20250523
["ID","MTS","AMOUNT","RATE_DAILY","PERIOD"]
[362021663,1747937467837,-992.337159,0.00022465,7]
[362021665,1747937467846,-470.0,0.00022465,2]
[362021667,1747937467856,-430.0,0.00022465,2]
[362021669,1747937467865,-430.0,0.00022465,2]
[362021671,1747937467875,-490.26799731,0.00022465,2]
[362021673,1747937467885,-430.0,0.00022465,2]
[362021675,1747937467895,-2457.758837,0.00022465,7]
[362021677,1747937467904,-2457.75884,0.00022465,7]
[362021679,1747937467914,-151.0,0.00022465,7]
[362021681,1747937467925,-3000.0,0.0002247,2]
[362021683,1747937467934,-568.86813041,0.00022473,2]
[362021685,1747937467944,-501.44409452,0.00022473,2]
[362021687,1747937467953,-500.0,0.00022473,2]
[362021689,1747937467963,-531.26352414,0.00022473,2]
[362021691,1747937467979,-500.0,0.00022473,2]
[362021693,1747937467988,-500.0,0.00022473,2]
[362021695,1747937467997,-500.0,0.00022473,2]
[362021697,1747937468006,-500.0,0.00022473,2]
[362021699,1747937468015,-192.79876,0.00022473,7]
[362021701,1747937468026,-192.79876,0.00022473,7]
[362021703,1747937468035,-151.0,0.00022473,7]
[362021705,1747937468044,-287.026737,0.00022473,7]
[362021706,1747937468054,-350.149423,0.00022473,7]
[362021708,1747937468066,-350.149423,0.00022473,7]
[362021710,1747937468076,-151.0,0.00022473,7]
[362021712,1747937468085,-151.0,0.00022473,7]
[362021714,1747937468095,-913.916522,0.00022473,7]
[362021716,1747937468105,-913.916522,0.00022473,7]
[362021718,1747937468114,-3000.0,0.0002248,2]
[362021720,1747937468123,-2663.27909513,0.00022486,7]
[362021722,1747937468133,-3000.0,0.0002249,2]
[362021724,1747937468142,-3000.0,0.000225,2]
[362021726,1747937468151,-2000.0,0.000225,2]
[362021728,1747937468161,-2717.99,0.00022507,2]
[362021730,1747937468171,-1248.89,0.00022507,2]
[362021732,1747937468180,-1231.12,0.00022507,2]
[362021734,1747937468190,-430.0,0.00022507,2]
[362021736,1747937468200,-3114.31,0.00022507,2]
[362021738,1747937468210,-6202.28,0.00022507,2]
[362021740,1747937468219,-869.75,0.00022507,2]
[362021742,1747937468229,-430.0,0.00022507,2]
[362021744,1747937468238,-2313.92,0.00022507,2]
[362021746,1747937468247,-723.28,0.00022507,2]
[362021748,1747937468257,-1963.66,0.00022507,2]
[362021750,1747937468266,-376.22,0.00022507,2]
[362021752,1747937468276,-927.6,0.00022507,2]
[362021754,1747937468285,-1019.25,0.00022507,2]
[362021756,1747937468295,-1494.4,0.00022507,2]
[362021758,1747937468304,-430.0,0.00022507,2]
[362021760,1747937468314,-430.0,0.00022507,2]
[362021762,1747937468323,-1033.98,0.00022507,2]
[362021763,1747937468332,-551.4,0.00022507,2]
[362021764,1747937468341,-1443.52,0.00022507,2]
[362021765,1747937468351,-488.57,0.00022507,2]
[362021766,1747937468360,-3000.0,0.0002251,2]
[362021767,1747937468370,-3000.0,0.0002252,2]
[362021768,1747937468380,-501.12886528,0.00022521,2]
[362021769,1747937468391,-1000.0,0.00022521,2]
[362021770,1747937468400,-973.29841553,0.00022521,2]
[362021771,1747937468409,-1000.0,0.00022521,2]
[362021772,1747937468420,-1000.0,0.00022521,2]
[362021773,1747937468429,-151.0,0.00022521,7]
[362021774,1747937468438,-315.0,0.00022527,3]
[362021775,1747937468447,-315.0,0.00022527,3]
[362021776,1747937468457,-315.0,0.00022527,3]
[362021777,1747937468467,-315.0,0.00022527,3]
[362021778,1747937468476,-315.0,0.00022527,3]
[362021779,1747937468485,-315.0,0.00022527,3]
[362021780,1747937468494,-315.0,0.00022527,3]
[362021781,1747937468506,-315.0,0.00022527,3]
[362021782,1747937468515,-315.0,0.00022527,3]
[362021783,1747937468524,-315.0,0.00022527,3]
[362021784,1747937468534,-315.0,0.00022527,3]
[362021785,1747937468543,-315.0,0.00022527,3]
[362021786,1747937468552,-315.0,0.00022527,3]
[362021787,1747937468562,-315.0,0.00022527,3]
[362021788,1747937468571,-315.0,0.00022527,3]
[362021790,1747937468580,-315.0,0.00022527,3]
[362021791,1747937468589,-315.0,0.00022527,3]
[362021792,1747937468598,-315.0,0.00022527,3]
[362021794,1747937468608,-315.0,0.00022527,3]
[362021796,1747937468617,-315.0,0.00022527,3]
[362021798,1747937468626,-315.0,0.00022527,3]
[362021800,1747937468636,-315.0,0.00022527,3]
[362021802,1747937468645,-315.0,0.00022527,3]
[362021804,1747937468654,-315.0,0.00022527,3]
[362021806,1747937468663,-315.0,0.00022527,3]
[362021808,1747937468672,-315.0,0.00022527,3]
[362021810,1747937468682,-315.0,0.00022527,3]
[362021812,1747937468691,-315.0,0.00022527,3]
[362021814,1747937468701,-315.0,0.00022527,3]
[362021816,1747937468711,-315.0,0.00022527,3]
[362021818,1747937468720,-315.0,0.00022527,3]
[362021820,1747937468728,-315.0,0.00022527,3]
[362021822,1747937468738,-315.0,0.00022527,3]
[362021824,1747937468747,-315.0,0.00022527,3]
[362021826,1747937468758,-315.0,0.00022527,3]
[362021828,1747937468767,-315.0,0.00022527,3]
[362021830,1747937468777,-315.0,0.00022527,3]
[362021832,1747937468786,-176.58861794,0.00022527,3]
[362021834,1747937468796,-151.0,0.00022527,7]
[362021836,1747937468806,-166.491313,0.00022527,7]
[362021850,1747937468935,-166.491313,0.00022527,7]
[362021852,1747937468946,-151.0,0.00022527,2]
[362021855,1747937468955,-151.0,0.00022527,2]
[362021857,1747937468965,-151.0,0.00022527,7]
[362021859,1747937468977,-847.748237,0.00022527,7]
[362021861,1747937468987,-847.748237,0.00022527,7]
[362021863,1747937468997,-175.64748,0.00022527,7]
[362021865,1747937469006,-175.64748,0.00022527,7]
[362021867,1747937469017,-151.0,0.00022527,7]
[362021869,1747937469027,-151.0,0.00022527,7]
[362021871,1747937469037,-188.2314,0.00022527,7]
[362021873,1747937469046,-188.2314,0.00022527,7]
[362021874,1747937469055,-151.0,0.00022527,7]
[362021876,1747937469066,-3000.0,0.0002253,2]
[362021878,1747937469075,-3000.0,0.0002254,2]
[362021880,1747937469084,-159.05485592,0.00022548,2]
[362021882,1747937469094,-161.94074666,0.00022548,2]
[362021884,1747937469104,-3000.0,0.0002255,2]
[362021886,1747937469114,-3000.0,0.0002256,2]
[362021888,1747937469125,-3000.0,0.0002257,2]
[362021890,1747937469135,-3000.0,0.0002258,2]
[362021892,1747937469144,-3000.0,0.0002259,2]
[362021894,1747937469153,-160.0,0.00022596,3]
[362021896,1747937469163,-207.898,0.00022599,2]
[362021898,1747937469173,-3000.0,0.000226,2]
[362021900,1747937469182,-604.845738,0.00022603,2]
[362021902,1747937469192,-3000.0,0.0002261,2]
[362021904,1747937469201,-2000.0,0.00022616,2]
[362021906,1747937469211,-638.24278703,0.00022616,2]
[362021908,1747937469220,-3000.0,0.0002262,2]
[362021910,1747937469229,-3000.0,0.0002263,2]
[362021912,1747937469238,-2200.0,0.00022639,2]
[362021914,1747937469248,-3000.0,0.0002264,2]
[362021917,1747937469258,-755.29,0.00022641,2]
[362021919,1747937469268,-430.0,0.00022641,2]
[362021920,1747937469277,-430.0,0.00022641,2]
[362021922,1747937469286,-430.0,0.00022641,2]
[362021925,1747937469297,-473.86,0.00022641,2]
[362021927,1747937469306,-543.2,0.00022641,2]
[362021929,1747937469315,-727.06,0.00022641,2]
[362021931,1747937469325,-430.0,0.00022641,2]
[362021933,1747937469335,-444.13,0.00022641,2]
[362021934,1747937469344,-928.04,0.00022641,2]
[362021936,1747937469354,-430.0,0.00022641,2]
[362021939,1747937469364,-4381.58,0.00022641,2]
[362021941,1747937469373,-430.0,0.00022641,2]
[362021942,1747937469383,-953.82,0.00022641,2]
[362021944,1747937469392,-2814.75,0.00022641,2]
[362021946,1747937469401,-430.0,0.00022641,2]
[362021948,1747937469411,-1916.57,0.00022641,2]
[362021950,1747937469420,-2051.68,0.00022641,2]
[362021952,1747937469430,-1029.01,0.00022641,2]
[362021954,1747937469439,-430.0,0.00022641,2]
[362021956,1747937469448,-1345.46,0.00022641,2]
[362021958,1747937469457,-854.7,0.00022641,2]
[362021960,1747937469467,-1268.89,0.00022641,2]
[362021962,1747937469477,-430.0,0.00022641,2]
[362021964,1747937469486,-1006.28,0.00022641,2]
[362021966,1747937469495,-430.0,0.00022641,2]
[362021969,1747937469506,-9816.64,0.00022641,2]
[362021971,1747937469515,-430.0,0.00022641,2]
[362021973,1747937469525,-430.0,0.00022641,2]
[362021975,1747937469534,-430.0,0.00022641,2]
[362021977,1747937469544,-1432.41,0.00022641,2]
[362021979,1747937469553,-944.38,0.00022641,2]
[362021981,1747937469563,-880.15,0.00022641,2]
[362021983,1747937469572,-430.0,0.00022641,2]
[362021985,1747937469582,-430.0,0.00022641,2]
[362021987,1747937469591,-430.0,0.00022641,2]
[362021989,1747937469600,-633.5,0.00022641,2]
[362021991,1747937469609,-430.0,0.00022641,2]
[362021993,1747937469619,-430.0,0.00022641,2]
[362021995,1747937469628,-430.0,0.00022641,2]
[362021997,1747937469637,-430.0,0.00022641,2]
[362021999,1747937469647,-430.0,0.00022641,2]
[362022001,1747937469656,-430.0,0.00022641,2]
[362022003,1747937469665,-760.18,0.00022641,2]
[362022005,1747937469675,-1811.62,0.00022641,2]
[362022007,1747937469684,-1062.44,0.00022641,2]
[362022009,1747937469693,-1627.43,0.00022641,2]
[362022011,1747937469704,-679.42,0.00022641,2]
[362022013,1747937469714,-430.0,0.00022641,2]
[362022015,1747937469723,-2910.52,0.00022641,2]
[362022017,1747937469732,-430.0,0.00022641,2]
[362022019,1747937469741,-351.42949093,0.00022641,2]
[362022021,1747937469751,-430.0,0.00022641,2]
[362022023,1747937469761,-798.79,0.00022641,2]
[362022025,1747937469771,-997.02,0.00022641,2]
[362022027,1747937469780,-1202.01,0.00022641,2]
[362022029,1747937469790,-500.0,0.00022641,2]
[362022031,1747937469799,-2934.9,0.00022641,2]
[362022033,1747937469809,-8361.66808399,0.00022647,2]
[362022035,1747937469818,-3000.0,0.0002265,2]
[362022037,1747937469827,-2663.27909513,0.00022659,7]
[362022039,1747937469836,-3000.0,0.0002266,2]
[362022041,1747937469846,-25000.0,0.0002266,2]
[362022043,1747937469856,-1500.0,0.00022668,2]
[362022045,1747937469866,-1800.0,0.00022668,2]
[362022047,1747937469875,-1500.0,0.00022668,2]
[362022049,1747937469885,-1500.0,0.00022668,2]
[362022051,1747937469895,-1500.0,0.00022668,2]
[362022053,1747937469906,-506.53957163,0.00022668,2]
[362022055,1747937469916,-1500.0,0.00022668,2]
[362022057,1747937469926,-1500.0,0.00022668,2]
[362022059,1747937469935,-583.90133583,0.00022668,2]
[362022061,1747937469945,-1009.83442537,0.00022668,2]
[362022063,1747937469955,-3000.0,0.0002267,2]
[362022065,1747937469967,-501.27183369,0.0002267,8]
[362022067,1747937469980,-3000.0,0.0002268,2]
[362022069,1747937469989,-3000.0,0.0002269,2]
[362022071,1747937469999,-447.56,0.00022692,2]
[362022073,1747937470009,-793.08,0.00022692,2]
[362022075,1747937470020,-870.97,0.00022692,2]
[362022077,1747937470029,-754.99,0.00022692,2]
[362022079,1747937470039,-2636.85,0.00022692,2]
[362022081,1747937470049,-4193.45,0.00022692,2]
[362022083,1747937470059,-635.81,0.00022692,2]
[362022085,1747937470069,-8839.91,0.00022692,2]
[362022087,1747937470079,-151.0,0.000227,7]
[362022089,1747937470089,-3000.0,0.000227,2]
[362022091,1747937470099,-636.0,0.000227,2]
[362022093,1747937470108,-800.0,0.00022703,2]
[362022095,1747937470118,-3000.0,0.0002271,2]
[362022097,1747937470127,-3000.0,0.0002272,2]
[362022099,1747937470136,-1000.0,0.00022721,2]
[362022101,1747937470145,-1000.0,0.00022721,2]
[362022103,1747937470155,-1000.0,0.00022721,2]
[362022105,1747937470164,-500.0,0.00022721,2]
[362022107,1747937470173,-1000.0,0.00022721,2]
[362022109,1747937470183,-500.0,0.00022721,2]
[362022111,1747937470193,-1000.0,0.00022721,2]
[362022113,1747937470203,-1000.0,0.00022721,2]
[362022115,1747937470213,-166.70411268,0.00022721,2]
[362022117,1747937470222,-1000.0,0.00022721,2]
[362022119,1747937470233,-1000.0,0.00022721,2]
[362022121,1747937470243,-1000.0,0.00022721,2]
[362022123,1747937470254,-302.70903956,0.00022721,2]
[362022125,1747937470264,-1036.86581622,0.00022721,2]
[362022127,1747937470274,-1000.0,0.00022721,2]
[362022129,1747937470283,-1026.27516079,0.00022721,2]
[362022131,1747937470293,-1076.97564241,0.00022721,2]
[362022133,1747937470302,-1000.0,0.00022721,2]
[362022136,1747937470312,-621.11190769,0.00022721,2]
[362022138,1747937470322,-1000.0,0.00022721,2]
[362022140,1747937470332,-1000.0,0.00022721,2]
[362022142,1747937470341,-500.65293061,0.00022721,2]
[362022144,1747937470351,-629.08419203,0.00022721,2]
[362022146,1747937470360,-239.39929938,0.00022721,2]
[362022148,1747937470370,-1027.57336724,0.00022721,2]
[362022150,1747937470380,-1000.0,0.00022721,2]
[362022152,1747937470390,-1000.0,0.00022721,2]
[362022154,1747937470399,-3000.0,0.0002273,2]
[362022156,1747937470409,-800.0,0.00022731,2]
[362022158,1747937470418,-800.0,0.00022737,2]
[362022160,1747937470428,-160.0,0.00022738,2]
[362022162,1747937470437,-192.79876,0.00022739,7]
[362022164,1747937470447,-192.79876,0.00022739,7]
[362022166,1747937470456,-192.79876,0.00022739,7]
[362022168,1747937470465,-192.798764,0.00022739,7]
[362022170,1747937470475,-151.0,0.00022739,7]
[362022172,1747937470484,-151.0,0.00022739,7]
[362022174,1747937470493,-151.0,0.00022739,7]
[362022176,1747937470505,-151.0,0.00022739,7]
[362022178,1747937470514,-151.0,0.00022739,7]
[362022180,1747937470523,-151.0,0.00022739,7]
[362022182,1747937470534,-327.968916,0.00022739,7]
[362022184,1747937470543,-327.968916,0.00022739,7]
[362022186,1747937470553,-327.968916,0.00022739,7]
[362022188,1747937470563,-327.968916,0.00022739,7]
[362022190,1747937470573,-224.107186,0.00022739,7]
[362022192,1747937470583,-224.107186,0.00022739,7]
[362022194,1747937470592,-224.107186,0.00022739,7]
[362022196,1747937470601,-224.107186,0.00022739,7]
[362022198,1747937470611,-935.62713,0.00022739,7]
[362022200,1747937470621,-935.62713,0.00022739,7]
[362022202,1747937470630,-307.735337,0.00022739,7]
[362022204,1747937470639,-307.735337,0.00022739,7]
[362022206,1747937470649,-307.735337,0.00022739,7]
[362022208,1747937470659,-307.735337,0.00022739,7]
[362022210,1747937470668,-313.460734,0.00022739,7]
[362022212,1747937470678,-313.460734,0.00022739,7]
[362022214,1747937470687,-313.460734,0.00022739,7]
[362022216,1747937470696,-313.460734,0.00022739,7]
[362022218,1747937470706,-313.460734,0.00022739,7]
[362022220,1747937470715,-313.460734,0.00022739,7]
[362022221,1747937470725,-151.0,0.00022739,7]
[362022223,1747937470734,-151.0,0.00022739,7]
[362022225,1747937470743,-274.446248,0.00022739,7]
[362022227,1747937470754,-274.446248,0.00022739,7]
[362022229,1747937470764,-274.446248,0.00022739,7]
[362022231,1747937470773,-163.931405,0.00022739,7]
[362022233,1747937470782,-163.931405,0.00022739,7]
[362022235,1747937470792,-274.446248,0.00022739,7]
[362022237,1747937470802,-163.931405,0.00022739,7]
[362022239,1747937470811,-274.446248,0.00022739,7]
[362022241,1747937470820,-274.446248,0.00022739,7]
[362022243,1747937470829,-163.931405,0.00022739,7]
[362022245,1747937470839,-163.931405,0.00022739,7]
[362022247,1747937470850,-163.931405,0.00022739,7]
[362022249,1747937470859,-351.638051,0.00022739,7]
[362022250,1747937470868,-351.638051,0.00022739,7]
[362022251,1747937470878,-351.638051,0.00022739,7]
[362022252,1747937470887,-351.638051,0.00022739,7]
[362022253,1747937470896,-166.491313,0.00022739,7]
[362022254,1747937470905,-166.491313,0.00022739,7]
[362022255,1747937470914,-166.491313,0.00022739,7]
[362022256,1747937470924,-166.491313,0.00022739,7]
[362022258,1747937470934,-151.0,0.00022739,2]
[362022261,1747937470943,-151.0,0.00022739,2]
[362022273,1747937470953,-221.311914,0.00022739,2]
[362022277,1747937471087,-151.0,0.00022739,7]
[362022279,1747937471096,-151.0,0.00022739,7]
[362022281,1747937471105,-847.748237,0.00022739,7]
[362022283,1747937471115,-847.748237,0.00022739,7]
[362022285,1747937471125,-847.748237,0.00022739,7]
[362022287,1747937471135,-847.748237,0.00022739,7]
[362022289,1747937471144,-175.64748,0.00022739,7]
[362022291,1747937471154,-175.64748,0.00022739,7]
[362022293,1747937471163,-175.64748,0.00022739,7]
[362022295,1747937471174,-175.64748,0.00022739,7]
[362022297,1747937471183,-350.149423,0.00022739,7]
[362022299,1747937471193,-350.149423,0.00022739,7]
[362022301,1747937471203,-350.149423,0.00022739,7]
[362022303,1747937471213,-350.149423,0.00022739,7]
[362022305,1747937471222,-151.0,0.00022739,7]
[362022307,1747937471232,-151.0,0.00022739,7]
[362022309,1747937471241,-151.0,0.00022739,7]
[362022311,1747937471251,-524.78,0.00022739,2]
[362022313,1747937471260,-430.0,0.00022739,2]
[362022315,1747937471270,-430.0,0.00022739,2]
[362022317,1747937471279,-188.2314,0.00022739,7]
[362022319,1747937471288,-188.2314,0.00022739,7]
[362022321,1747937471299,-188.2314,0.00022739,7]
[362022323,1747937471308,-188.2314,0.00022739,7]
[362022325,1747937471318,-439.05,0.00022739,2]
[362022327,1747937471327,-151.0,0.00022739,7]
[362022329,1747937471336,-151.0,0.00022739,7]
[362022331,1747937471346,-913.916522,0.00022739,7]
[362022333,1747937471355,-913.916522,0.00022739,7]
[362022335,1747937471365,-913.916522,0.00022739,7]
[362022337,1747937471375,-913.916522,0.00022739,7]
[362022339,1747937471384,-430.0,0.00022739,2]
[362022341,1747937471395,-1000.0,0.00022739,2]
[362022344,1747937471405,-430.0,0.00022739,2]
[362022346,1747937471415,-351.94796961,0.00022739,2]
[362022348,1747937471424,-430.0,0.00022739,2]
[362022350,1747937471435,-430.0,0.00022739,2]
[362022352,1747937471444,-430.0,0.00022739,2]
[362022354,1747937471454,-430.0,0.00022739,2]
[362022356,1747937471463,-348.33931887,0.00022739,2]
[362022358,1747937471473,-430.0,0.00022739,2]
[362022360,1747937471482,-256.78,0.00022739,2]
[362022362,1747937471492,-1218.95,0.00022739,2]
[362022364,1747937471502,-530.0,0.00022739,2]
[362022366,1747937471512,-430.0,0.00022739,2]
[362022368,1747937471522,-430.0,0.00022739,2]
[362022370,1747937471532,-430.0,0.00022739,2]
[362022372,1747937471541,-430.0,0.00022739,2]
[362022374,1747937471551,-580.09,0.00022739,2]
[362022376,1747937471560,-430.0,0.00022739,2]
[362022378,1747937471570,-430.0,0.00022739,2]
[362022380,1747937471579,-430.0,0.00022739,2]
[362022382,1747937471589,-430.0,0.00022739,2]
[362022384,1747937471598,-407.20182568,0.00022739,2]
[362022386,1747937471607,-430.0,0.00022739,2]
[362022388,1747937471617,-430.0,0.00022739,2]
[362022390,1747937471626,-430.0,0.00022739,2]
[362022392,1747937471635,-430.0,0.00022739,2]
[362022394,1747937471644,-430.0,0.00022739,2]
[362022396,1747937471654,-430.0,0.00022739,2]
[362022398,1747937471665,-490.0,0.00022739,2]
[362022400,1747937471675,-450.49,0.00022739,2]
[362022402,1747937471685,-300.0,0.00022739,2]
[362022405,1747937471694,-430.0,0.00022739,2]
[362022407,1747937471704,-1179.96,0.00022739,2]
[362022408,1747937471714,-354.93,0.00022739,2]
[362022411,1747937471723,-430.0,0.00022739,2]
[362022413,1747937471733,-430.0,0.00022739,2]
[362022415,1747937471742,-430.0,0.00022739,2]
[362022417,1747937471752,-430.0,0.00022739,2]
[362022419,1747937471762,-490.0,0.00022739,2]
[362022421,1747937471772,-430.0,0.00022739,2]
[362022423,1747937471782,-430.0,0.00022739,2]
[362022425,1747937471792,-535.84,0.00022739,2]
[362022427,1747937471801,-430.0,0.00022739,2]
[362022429,1747937471811,-510.0,0.00022739,2]
[362022431,1747937471820,-430.0,0.00022739,2]
[362022433,1747937471829,-601.61,0.00022739,2]
[362022435,1747937471839,-430.0,0.00022739,2]
[362022437,1747937471848,-920.11,0.00022739,2]
[362022439,1747937471857,-430.0,0.00022739,2]
[362022441,1747937471867,-1361.15,0.00022739,2]
[362022443,1747937471876,-263.77,0.00022739,2]
[362022445,1747937471886,-430.0,0.00022739,2]
[362022447,1747937471897,-1240.4,0.00022739,2]
[362022449,1747937471908,-180.24,0.00022739,2]
[362022451,1747937471918,-430.0,0.00022739,2]
[362022453,1747937471927,-510.0,0.00022739,2]
[362022455,1747937471937,-430.0,0.00022739,2]
[362022457,1747937471947,-782.33,0.00022739,2]
[362022459,1747937471956,-980.99,0.00022739,2]
[362022461,1747937471966,-430.0,0.00022739,2]
[362022463,1747937471980,-225.15,0.00022739,2]
[362022465,1747937471990,-430.0,0.00022739,2]
[362022467,1747937472000,-460.0,0.00022739,2]
[362022470,1747937472011,-430.0,0.00022739,2]
[362022472,1747937472021,-430.0,0.00022739,2]
[362022474,1747937472030,-430.0,0.00022739,2]
[362022476,1747937472040,-3000.0,0.0002274,2]
[362022478,1747937472051,-3000.0,0.0002275,2]
[362022480,1747937472060,-800.0,0.00022751,2]
[362022482,1747937472070,-3000.0,0.0002276,2]
[362022484,1747937472079,-800.0,0.00022763,2]
[362022486,1747937472089,-800.0,0.00022766,2]
[362022488,1747937472099,-3000.0,0.0002277,2]
[362022490,1747937472108,-800.0,0.00022771,2]
[362022492,1747937472118,-595.01077437,0.00022773,2]
[362022494,1747937472127,-500.0,0.00022773,2]
[362022496,1747937472137,-500.0,0.00022773,2]
[362022498,1747937472146,-500.0,0.00022773,2]
[362022500,1747937472155,-3000.0,0.0002278,2]
[362022502,1747937472164,-800.0,0.00022781,2]
[362022504,1747937472173,-2717.99,0.00022781,2]
[362022506,1747937472182,-1248.89,0.00022781,2]
[362022508,1747937472192,-1231.12,0.00022781,2]
[362022510,1747937472202,-430.0,0.00022781,2]
[362022512,1747937472211,-3114.31,0.00022781,2]
[362022514,1747937472222,-6202.28,0.00022781,2]
[362022516,1747937472231,-869.75,0.00022781,2]
[362022518,1747937472241,-430.0,0.00022781,2]
[362022520,1747937472250,-2313.92,0.00022781,2]
[362022522,1747937472260,-723.28,0.00022781,2]
[362022524,1747937472270,-1963.66,0.00022781,2]
[362022526,1747937472279,-927.6,0.00022781,2]
[362022527,1747937472290,-1019.25,0.00022781,2]
[362022528,1747937472300,-1494.4,0.00022781,2]
[362022529,1747937472309,-430.0,0.00022781,2]
[362022530,1747937472319,-430.0,0.00022781,2]
[362022531,1747937472329,-1033.98,0.00022781,2]
[362022532,1747937472338,-551.4,0.00022781,2]
[362022533,1747937472348,-1443.52,0.00022781,2]
[362022534,1747937472358,-488.57,0.00022781,2]
[362022535,1747937472367,-3000.0,0.0002279,2]
[362022536,1747937472377,-159.05485592,0.00022795,2]
[362022537,1747937472387,-161.94074666,0.00022795,2]
[362022538,1747937472396,-800.0,0.00022795,2]
[362022539,1747937472406,-3000.0,0.000228,2]
[362022540,1747937472416,-800.0,0.00022806,2]
[362022541,1747937472426,-800.0,0.00022807,2]
[362022542,1747937472436,-3000.0,0.0002281,2]
[362022544,1747937472445,-3000.0,0.0002282,2]
[362022546,1747937472454,-3000.0,0.0002283,2]
[362022548,1747937472464,-2663.27909513,0.00022831,8]
[362022550,1747937472474,-800.0,0.00022836,2]
[362022551,1747937472483,-3991.581379,0.0002284,2]
[362022552,1747937472493,-350.149423,0.0002284,7]
[362022553,1747937472503,-350.149417,0.0002284,7]
[362022554,1747937472513,-913.916522,0.0002284,7]
[362022555,1747937472522,-913.916518,0.0002284,7]
[362022556,1747937472531,-800.0,0.00022862,2]
[362022557,1747937472541,-800.0,0.00022875,2]
[362022558,1747937472550,-324.32824355,0.00022883,2]
[362022559,1747937472559,-800.0,0.00022887,2]
[362022560,1747937472569,-800.0,0.00022894,2]
[362022561,1747937472579,-10012.64899,0.000229,2]
[362022562,1747937472588,-151.0,0.0002291,7]
[362022563,1747937472598,-327.968916,0.0002291,7]
[362022564,1747937472607,-327.968916,0.0002291,7]
[362022565,1747937472617,-224.107186,0.0002291,7]
[362022566,1747937472627,-224.107186,0.0002291,7]
[362022567,1747937472637,-935.62713,0.0002291,7]
[362022568,1747937472647,-351.638051,0.0002291,7]
[362022569,1747937472656,-351.638051,0.0002291,7]
[362022570,1747937472667,-755.29,0.00022915,2]
[362022571,1747937472676,-430.0,0.00022915,2]
[362022572,1747937472686,-430.0,0.00022915,2]
[362022573,1747937472695,-430.0,0.00022915,2]
[362022574,1747937472705,-543.2,0.00022915,2]
[362022575,1747937472716,-727.06,0.00022915,2]
[362022576,1747937472725,-430.0,0.00022915,2]
[362022577,1747937472734,-444.13,0.00022915,2]
[362022578,1747937472743,-928.04,0.00022915,2]
[362022579,1747937472754,-430.0,0.00022915,2]
[362022581,1747937472763,-4381.58,0.00022915,2]
[362022583,1747937472773,-430.0,0.00022915,2]
[362022585,1747937472782,-953.82,0.00022915,2]
[362022586,1747937472792,-2814.75,0.00022915,2]
[362022587,1747937472802,-430.0,0.00022915,2]
[362022588,1747937472811,-1916.57,0.00022915,2]
[362022589,1747937472822,-2051.68,0.00022915,2]
[362022590,1747937472832,-1029.01,0.00022915,2]
[362022591,1747937472843,-430.0,0.00022915,2]
[362022592,1747937472853,-1345.46,0.00022915,2]
[362022593,1747937472863,-854.7,0.00022915,2]
[362022594,1747937472872,-1268.89,0.00022915,2]
[362022595,1747937472882,-430.0,0.00022915,2]
[362022596,1747937472891,-1006.28,0.00022915,2]
[362022597,1747937472901,-430.0,0.00022915,2]